[Event "Polofinale MCR junioru 2023"]
[Site "Czech Republic"]
[Date "2023.11.15"]
[Round "6.4"]
[White "Skypala, Ondrej"]
[Black "Pavlis, Matej"]
[Result "1/2-1/2"]
[TimeControl "90 min per 40 moves + 15 min + 30 sec / move from move 1"]
[WhiteFideId "366285"]
[BlackFideId "23735767"]
[WhiteElo "2159"]
[BlackElo "1974"]

1. c4 {[%clk 01:30:58]} e6 {[%clk 01:30:40]} {[%emt 00:00:21]} 2. g3 {[%clk
01:30:48]} {[%emt 00:00:40]} Nf6 {[%clk 01:30:28]} {[%emt 00:00:42]} 3. Bg2
{[%clk 01:31:09]} {[%emt 00:00:09]} d5 {[%clk 01:30:39]} {[%emt 00:00:20]} 4.
Nf3 {[%clk 01:31:35]} {[%emt 00:00:03]} Be7 {[%clk 01:30:45]} {[%emt 00:00:24]}
5. O-O {[%clk 01:32:00]} {[%emt 00:00:05]} O-O {[%clk 01:31:09]} {[%emt
00:00:05]} 6. d4 {[%clk 01:32:07]} {[%emt 00:00:24]} c5 {[%clk 01:29:23]}
{[%emt 00:02:16]} 7. dxc5 {[%clk 01:32:32]} {[%emt 00:00:05]} Bxc5 {[%clk
01:27:04]} {[%emt 00:02:48]} 8. a3 {[%clk 01:32:58]} {[%emt 00:00:05]} Be7
{[%clk 01:24:33]} {[%emt 00:03:01]} 9. b4 {[%clk 01:32:01]} {[%emt 00:01:26]}
a6 {[%clk 01:20:03]} {[%emt 00:05:01]} 10. Bb2 {[%clk 01:26:13]} {[%emt
00:06:18]} Nc6 {[%clk 01:17:32]} {[%emt 00:03:01]} 11. Nbd2 {[%clk 01:23:34]}
{[%emt 00:03:09]} Rb8 {[%clk 01:12:33]} {[%emt 00:05:29]} 12. Rc1 {[%clk
01:23:01]} {[%emt 00:01:03]} Re8 {[%clk 01:02:07]} {[%emt 00:10:56]} 13. Qc2
{[%clk 01:21:50]} {[%emt 00:01:40]} Bd7 {[%clk 00:58:55]} {[%emt 00:03:43]} 14.
cxd5 {[%clk 01:14:04]} {[%emt 00:08:16]} exd5 {[%clk 00:59:11]} {[%emt
00:00:14]} 15. Ne5 {[%clk 01:13:58]} {[%emt 00:00:36]} Rc8 {[%clk 00:57:03]}
{[%emt 00:02:38]} 16. Nxd7 {[%clk 01:12:18]} {[%emt 00:02:10]} Qxd7 {[%clk
00:57:23]} {[%emt 00:00:10]} 17. Qd3 {[%clk 01:12:21]} {[%emt 00:00:26]} Rcd8
{[%clk 00:56:34]} {[%emt 00:01:20]} 18. Rfd1 {[%clk 01:07:45]} {[%emt
00:05:05]} Qe6 {[%clk 00:56:28]} {[%emt 00:00:36]} 19. Nf3 {[%clk 01:07:00]}
{[%emt 00:01:16]} Ne4 {[%clk 00:49:39]} {[%emt 00:07:19]} 20. Nd4 {[%clk
01:04:39]} {[%emt 00:02:50]} Nxd4 {[%clk 00:48:18]} {[%emt 00:01:52]} 21. Bxd4
{[%clk 01:03:00]} {[%emt 00:02:08]} Bf6 {[%clk 00:47:27]} {[%emt 00:01:22]} 22.
Rc7 {[%clk 01:03:13]} {[%emt 00:00:16]} b5 {[%clk 00:45:46]} {[%emt 00:02:12]}
23. Rdc1 {[%clk 01:00:55]} {[%emt 00:02:48]} h6 {[%clk 00:41:34]} {[%emt
00:04:42]} 24. Bf3 {[%clk 00:48:27]} {[%emt 00:12:57]} Rd6 {[%clk 00:38:30]}
{[%emt 00:03:34]} 25. h4 {[%clk 00:42:31]} {[%emt 00:06:26]} Red8 {[%clk
00:20:07]} {[%emt 00:18:54]} 26. Be3 {[%clk 00:38:59]} {[%emt 00:04:02]} Be5
{[%clk 00:18:18]} {[%emt 00:02:19]} 27. Kg2 {[%clk 00:37:48]} {[%emt 00:01:40]}
Nf6 {[%clk 00:16:39]} {[%emt 00:02:09]} 28. Bc5 {[%clk 00:34:44]} {[%emt
00:03:34]} Rc6 {[%clk 00:15:57]} {[%emt 00:01:13]} 29. Rxc6 {[%clk 00:33:30]}
{[%emt 00:01:44]} Qxc6 {[%clk 00:16:18]} {[%emt 00:00:08]} 30. g4 {[%clk
00:26:54]} {[%emt 00:07:06]} Qe6 {[%clk 00:15:25]} {[%emt 00:01:23]} 31. g5
{[%clk 00:27:19]} {[%emt 00:00:06]} hxg5 {[%clk 00:14:36]} {[%emt 00:01:20]} 32.
hxg5 {[%clk 00:27:11]} {[%emt 00:00:37]} Ne4 {[%clk 00:13:24]} {[%emt
00:01:42]} 33. Be3 {[%clk 00:24:39]} {[%emt 00:03:01]} Rd6 {[%clk 00:13:43]}
{[%emt 00:00:12]} 34. Qc2 {[%clk 00:23:14]} {[%emt 00:01:55]} Nc3 {[%clk
00:08:41]} {[%emt 00:05:26]} 35. Rh1 {[%clk 00:22:31]} {[%emt 00:01:18]} g6
{[%clk 00:09:09]} {[%emt 00:00:02]} 36. Bc5 {[%clk 00:20:36]} {[%emt 00:02:25]}
Rd8 {[%clk 00:08:47]} {[%emt 00:00:52]} 37. Rh4 {[%clk 00:20:27]} {[%emt
00:00:39]} d4 {[%clk 00:08:21]} {[%emt 00:00:57]} 38. Qd2 {[%clk 00:15:19]}
{[%emt 00:05:37]} Bg7 {[%clk 00:04:19]} {[%emt 00:04:33]} 39. Rf4 {[%clk
00:05:19]} {[%emt 00:10:29]} Qe5 {[%clk 00:03:07]} {[%emt 00:01:42]} 40. Rg4
{[%clk 00:05:24]} {[%emt 00:00:26]} Nb1 {[%clk 00:00:54]} {[%emt 00:02:43]} 41.
Qd3 {[%clk 00:04:23]} {[%emt 00:01:30]} Nc3 {[%clk 00:15:46]} {[%emt 00:01:08]}
42. Bb6 {[%clk 00:14:39]} {[%emt 00:06:15]} Rd7 {[%clk 00:14:03]} {[%emt
00:02:12]} 43. Bc5 {[%clk 00:10:16]} {[%emt 00:04:53]} Qe6 {[%clk 00:08:55]}
{[%emt 00:05:37]} 44. Rg3 {[%clk 00:07:06]} {[%emt 00:03:42]} Qc4 {[%clk
00:07:38]} {[%emt 00:01:47]} 45. Qd2 {[%clk 00:06:27]} {[%emt 00:01:08]} Be5
{[%clk 00:06:04]} {[%emt 00:02:04]} 46. Rg4 {[%clk 00:06:15]} {[%emt 00:00:42]}
Nd5 {[%clk 00:05:33]} {[%emt 00:01:00]} 47. Be4 {[%clk 00:05:24]} {[%emt
00:01:22]} Qc3 {[%clk 00:05:47]} {[%emt 00:00:15]} 48. Qxc3 {[%clk 00:04:33]}
{[%emt 00:01:22]} dxc3 {[%clk 00:06:02]} {[%emt 00:00:16]} 49. Kf3 {[%clk
00:04:44]} {[%emt 00:00:19]} Nc7 {[%clk 00:06:06]} {[%emt 00:00:26]} 50. Rg1
{[%clk 00:04:28]} {[%emt 00:00:45]} Rd2 {[%clk 00:04:53]} {[%emt 00:01:43]} 51.
Ra1 {[%clk 00:04:26]} {[%emt 00:00:32]} Ne6 {[%clk 00:05:11]} {[%emt 00:00:11]}
52. Be3 {[%clk 00:04:52]} {[%emt 00:00:05]} Rb2 {[%clk 00:04:02]} {[%emt
00:01:40]} 53. Bd3 {[%clk 00:04:29]} {[%emt 00:00:53]} Nd4+ {[%clk 00:03:30]}
{[%emt 00:01:02]} 54. Ke4 {[%clk 00:02:47]} {[%emt 00:02:12]} Nb3 {[%clk
00:03:34]} {[%emt 00:00:25]} 55. Rb1 {[%clk 00:02:42]} {[%emt 00:00:35]} Nd2+
{[%clk 00:01:38]} {[%emt 00:02:27]} 56. Bxd2 {[%clk 00:01:01]} {[%emt
00:02:10]} cxd2 {[%clk 00:00:49]} {[%emt 00:01:20]} 57. Rd1 {[%clk 00:00:51]}
{[%emt 00:00:40]} Bc3 {[%clk 00:01:09]} {[%emt 00:00:09]} 58. f4 {[%clk
00:01:02]} {[%emt 00:00:19]} Ra2 {[%clk 00:01:31]} {[%emt 00:00:08]} 59. f5
{[%clk 00:01:25]} {[%emt 00:00:08]} gxf5+ {[%clk 00:01:26]} {[%emt 00:00:35]}
60. Kxf5 {[%clk 00:01:50]} {[%emt 00:00:05]} Kg7 {[%clk 00:01:16]} {[%emt
00:00:39]} 61. Rg1 {[%clk 00:01:42]} {[%emt 00:00:38]} Ra1 {[%clk 00:01:17]}
{[%emt 00:00:28]} 62. Rxa1 {[%clk 00:02:07]} {[%emt 00:00:07]} Bxa1 {[%clk
00:01:25]} {[%emt 00:00:22]} 63. Bc2 {[%clk 00:02:33]} {[%emt 00:00:03]} Bb2
{[%clk 00:01:51]} {[%emt 00:00:04]} 64. a4 {[%clk 00:03:00]} {[%emt 00:00:03]}
Bc3 {[%clk 00:01:42]} {[%emt 00:00:39]} 65. axb5 {[%clk 00:03:26]} {[%emt
00:00:04]} axb5 {[%clk 00:02:09]} {[%emt 00:00:03]} 66. e4 {[%clk 00:03:48]}
{[%emt 00:00:08]} Bxb4 {[%clk 00:02:03]} {[%emt 00:00:36]} 67. e5 {[%clk
00:03:37]} {[%emt 00:00:41]} Bc3 {[%clk 00:02:13]} {[%emt 00:00:21]} 68. Bb3
{[%clk 00:03:46]} {[%emt 00:00:21]} b4 {[%clk 00:02:37]} {[%emt 00:00:05]} 69.
Bc2 {[%clk 00:04:11]} {[%emt 00:00:05]} Bb2 {[%clk 00:02:54]} {[%emt 00:00:13]}
70. Bb3 {[%clk 00:04:22]} {[%emt 00:00:19]} Bc3 {[%clk 00:02:45]} {[%emt
00:00:40]} 71. Bc2 {[%clk 00:04:47]} {[%emt 00:00:05]} Kf8 {[%clk 00:01:57]}
{[%emt 00:01:17]} 72. e6 {[%clk 00:05:11]} {[%emt 00:00:06]} fxe6+ {[%clk
00:02:21]} {[%emt 00:00:07]} 73. Kxe6 {[%clk 00:05:34]} {[%emt 00:00:07]} Kg7
{[%clk 00:02:45]} {[%emt 00:00:06]} 74. g6 {[%clk 00:05:58]} {[%emt 00:00:07]}
Kh6 {[%clk 00:02:49]} {[%emt 00:00:25]} 75. Kf5 {[%clk 00:06:23]} {[%emt
00:00:05]} Kh5 {[%clk 00:03:01]} {[%emt 00:00:17]} 76. Kf4 {[%clk 00:06:49]}
{[%emt 00:00:04]} b3 {[%clk 00:03:14]} {[%emt 00:00:17]} 77. Bxb3 {[%clk
00:07:00]} {[%emt 00:00:20]} Kxg6 {[%clk 00:03:40]} {[%emt 00:00:04]} 1/2-1/2

[Event "Polofinale MCR junioru 2023"]
[Site "Czech Republic"]
[Date "2023.11.15"]
[Round "6.6"]
[White "Jirasko, Miroslav"]
[Black "Soucek, Petr"]
[Result "0-1"]
[TimeControl "90 min per 40 moves + 15 min + 30 sec / move from move 1"]
[WhiteFideId "23729414"]
[BlackFideId "23715170"]
[WhiteElo "2084"]
[BlackElo "2227"]

1. Nf3 {[%clk 01:30:44]} {[%emt 00:00:07]} Nf6 {[%clk 01:30:43]} {[%emt
00:00:26]} 2. c4 {[%clk 01:30:50]} {[%emt 00:00:24]} e6 {[%clk 01:31:03]}
{[%emt 00:00:10]} 3. g3 {[%clk 01:31:04]} {[%emt 00:00:16]} d5 {[%clk
01:31:23]} {[%emt 00:00:11]} 4. Bg2 {[%clk 01:31:30]} {[%emt 00:00:04]} d4
{[%clk 01:31:26]} {[%emt 00:00:27]} 5. O-O {[%clk 01:31:44]} {[%emt 00:00:15]}
c5 {[%clk 01:31:45]} {[%emt 00:00:11]} 6. d3 {[%clk 01:31:45]} {[%emt
00:00:29]} Nc6 {[%clk 01:31:52]} {[%emt 00:00:23]} 7. e3 {[%clk 01:32:05]}
{[%emt 00:00:10]} Bd6 {[%clk 01:31:58]} {[%emt 00:00:25]} 8. exd4 {[%clk
01:32:00]} {[%emt 00:00:35]} cxd4 {[%clk 01:32:23]} {[%emt 00:00:05]} 9. Bg5
{[%clk 01:31:25]} {[%emt 00:01:04]} h6 {[%clk 01:29:38]} {[%emt 00:03:15]} 10.
Bxf6 {[%clk 01:30:00]} {[%emt 00:01:55]} Qxf6 {[%clk 01:30:03]} {[%emt
00:00:05]} 11. Nbd2 {[%clk 01:30:21]} {[%emt 00:00:09]} Qe7 {[%clk 01:30:15]}
{[%emt 00:00:19]} 12. Re1 {[%clk 01:26:57]} {[%emt 00:03:53]} O-O {[%clk
01:29:10]} {[%emt 00:01:35]} 13. Nb3 {[%clk 01:23:33]} {[%emt 00:03:54]} Qf6
{[%clk 01:24:45]} {[%emt 00:04:56]} 14. c5 {[%clk 01:18:53]} {[%emt 00:05:10]}
Bc7 {[%clk 01:24:03]} {[%emt 00:01:12]} 15. Nbd2 {[%clk 01:17:52]} {[%emt
00:01:30]} Rd8 {[%emt 00:19:54]} 16. a3 {[%clk 01:04:35]} {[%emt 00:06:19]} a5
{[%clk 01:11:48]} {[%emt 00:00:50]} 17. Rb1 {[%clk 00:56:05]} {[%emt 00:09:00]}
a4 {[%clk 01:12:00]} {[%emt 00:00:18]} 18. Rc1 {[%clk 00:56:31]} {[%emt
00:00:04]} e5 {[%clk 01:02:50]} {[%emt 00:09:39]} 19. Rc4 {[%clk 00:55:24]}
{[%emt 00:01:37]} Qe7 {[%clk 01:02:07]} {[%emt 00:01:13]} 20. Rxa4 {[%clk
00:52:31]} {[%emt 00:03:23]} Rxa4 {[%clk 01:00:56]} {[%emt 00:01:42]} 21. Qxa4
{[%clk 00:52:56]} {[%emt 00:00:04]} Qxc5 {[%clk 01:00:51]} {[%emt 00:00:35]} 22.
Ne4 {[%clk 00:53:05]} {[%emt 00:00:22]} Qb6 {[%clk 00:51:33]} {[%emt 00:09:48]}
23. b4 {[%clk 00:52:53]} {[%emt 00:00:42]} Qa7 {[%clk 00:24:44]} {[%emt
00:27:18]} 24. Qxa7 {[%clk 00:44:34]} {[%emt 00:08:49]} Nxa7 {[%clk 00:25:01]}
{[%emt 00:00:13]} 25. Rc1 {[%clk 00:40:10]} {[%emt 00:04:54]} Bb8 {[%clk
00:25:13]} {[%emt 00:00:18]} 26. Rc5 {[%clk 00:39:07]} {[%emt 00:01:33]} f6
{[%clk 00:18:00]} {[%emt 00:07:43]} 27. Nfd2 {[%clk 00:39:33]} {[%emt
00:00:05]} b6 {[%clk 00:17:54]} {[%emt 00:00:36]} 28. Rc1 {[%clk 00:39:51]}
{[%emt 00:00:11]} f5 {[%clk 00:17:47]} {[%emt 00:00:37]} 29. Nc5 {[%clk
00:38:25]} {[%emt 00:01:56]} bxc5 {[%clk 00:18:07]} {[%emt 00:00:11]} 30. Rxc5
{[%clk 00:38:45]} {[%emt 00:00:09]} Be6 {[%clk 00:17:31]} {[%emt 00:01:06]} 31.
a4 {[%clk 00:38:37]} {[%emt 00:00:38]} Bd6 {[%clk 00:17:21]} {[%emt 00:00:41]}
32. Ra5 {[%clk 00:38:21]} {[%emt 00:00:45]} Bxb4 {[%clk 00:17:02]} {[%emt
00:00:49]} 33. Rxa7 {[%clk 00:38:47]} {[%emt 00:00:04]} Bxd2 {[%clk 00:17:24]}
{[%emt 00:00:08]} 34. a5 {[%clk 00:39:12]} {[%emt 00:00:06]} Bd5 {[%clk
00:09:07]} {[%emt 00:08:47]} 35. a6 {[%clk 00:36:06]} {[%emt 00:03:35]} e4
{[%clk 00:08:24]} {[%emt 00:01:13]} 36. Re7 {[%clk 00:35:27]} {[%emt 00:01:07]}
Bb4 {[%clk 00:05:59]} {[%emt 00:02:57]} 37. Re5 {[%clk 00:35:47]} {[%emt
00:00:10]} Ba8 {[%clk 00:05:39]} {[%emt 00:00:50]} 38. Rb5 {[%clk 00:35:28]}
{[%emt 00:00:49]} Bd6 {[%clk 00:05:30]} {[%emt 00:00:39]} 39. Rxf5 {[%clk
00:34:35]} {[%emt 00:01:23]} exd3 {[%clk 00:05:04]} {[%emt 00:00:56]} 40. Bxa8
{[%clk 00:34:58]} {[%emt 00:00:07]} Rxa8 {[%clk 00:05:31]} {[%emt 00:00:03]} 41.
Rd5 {[%clk 00:34:48]} {[%emt 00:00:40]} d2 {[%clk 00:05:56]} {[%emt 00:00:05]}
42. Rxd4 {[%clk 00:35:08]} {[%emt 00:00:10]} Bb4 {[%clk 00:06:08]} {[%emt
00:00:18]} 0-1

[Event "Polofinale MCR junioru 2023"]
[Site "Czech Republic"]
[Date "2023.11.15"]
[Round "6.7"]
[White "Lihotsky, Lukas"]
[Black "Hurtik, Matej"]
[Result "1-0"]
[TimeControl "90 min per 40 moves + 15 min + 30 sec / move from move 1"]
[WhiteFideId "23727004"]
[BlackFideId "397997"]
[WhiteElo "2100"]
[BlackElo "2131"]

1. d4 {[%clk 01:30:59]} e5 {[%clk 01:23:54]} {[%emt 00:06:58]} 2. dxe5 {[%clk
01:31:21]} {[%emt 00:00:16]} Nc6 {[%clk 01:24:17]} {[%emt 00:00:07]} 3. Nf3
{[%clk 01:31:47]} {[%emt 00:00:04]} d6 {[%clk 01:24:42]} {[%emt 00:00:05]} 4.
Bg5 {[%clk 01:27:49]} {[%emt 00:04:28]} Qd7 {[%clk 01:23:26]} {[%emt 00:01:47]}
5. exd6 {[%clk 01:24:28]} {[%emt 00:03:50]} Bxd6 {[%clk 01:23:45]} {[%emt
00:00:11]} 6. Nc3 {[%clk 01:20:57]} {[%emt 00:04:01]} h6 {[%clk 01:17:52]}
{[%emt 00:06:23]} 7. Bh4 {[%clk 01:20:29]} {[%emt 00:00:58]} Qg4 {[%clk
01:18:12]} {[%emt 00:00:09]} 8. e3 {[%clk 01:14:34]} {[%emt 00:06:26]} Qb4
{[%clk 01:07:57]} {[%emt 00:10:45]} 9. a3 {[%clk 01:03:43]} {[%emt 00:11:21]}
Qg4 {[%clk 00:44:33]} {[%emt 00:23:54]} 10. Nb5 {[%clk 00:59:54]} {[%emt
00:04:17]} Be6 {[%clk 00:43:42]} {[%emt 00:01:22]} 11. Nxd6+ {[%clk 00:56:20]}
{[%emt 00:04:04]} cxd6 {[%clk 00:44:10]} {[%emt 00:00:02]} 12. Qxd6 {[%clk
00:55:05]} {[%emt 00:01:44]} g5 {[%clk 00:41:20]} {[%emt 00:03:21]} 13. Bg3
{[%clk 00:44:13]} {[%emt 00:11:22]} Rd8 {[%clk 00:39:50]} {[%emt 00:02:00]} 14.
Qc5 {[%clk 00:43:09]} {[%emt 00:01:33]} Nge7 {[%clk 00:39:50]} {[%emt
00:00:31]} 15. h4 {[%clk 00:40:00]} {[%emt 00:03:39]} gxh4 {[%clk 00:29:18]}
{[%emt 00:11:03]} 16. Rxh4 {[%clk 00:32:35]} {[%emt 00:07:54]} Qg7 {[%clk
00:29:01]} {[%emt 00:00:47]} 17. Nd4 {[%clk 00:30:20]} {[%emt 00:02:45]} Rd5
{[%clk 00:14:24]} {[%emt 00:15:08]} 18. Qc3 {[%emt 00:07:54]} Nxd4 {[%clk
00:09:40]} {[%emt 00:00:02]} 19. Rxd4 {[%clk 00:28:10]} {[%emt 00:00:28]} Nf5
{[%clk 00:08:45]} {[%emt 00:01:24]} 20. Rxd5 {[%clk 00:26:48]} {[%emt
00:01:53]} Qxc3+ {[%clk 00:07:52]} {[%emt 00:01:23]} 21. bxc3 {[%clk 00:27:17]}
{[%emt 00:00:01]} Bxd5 {[%clk 00:08:08]} {[%emt 00:00:14]} 22. Bf4 {[%clk
00:27:03]} {[%emt 00:00:43]} Ke7 {[%clk 00:06:05]} {[%emt 00:02:34]} 23. f3
{[%clk 00:24:58]} {[%emt 00:02:34]} Nh4 {[%clk 00:06:13]} {[%emt 00:00:22]} 24.
e4 {[%clk 00:24:31]} {[%emt 00:00:57]} Be6 {[%clk 00:06:10]} {[%emt 00:00:33]}
25. Be3 {[%clk 00:22:53]} {[%emt 00:02:08]} b6 {[%clk 00:05:40]} {[%emt
00:01:01]} 26. a4 {[%clk 00:20:38]} {[%emt 00:02:45]} f5 {[%clk 00:05:01]}
{[%emt 00:01:08]} 27. e5 {[%clk 00:15:57]} {[%emt 00:05:11]} Rc8 {[%clk
00:01:09]} {[%emt 00:04:22]} 28. Bd4 {[%clk 00:09:51]} {[%emt 00:06:36]} a5
{[%clk 00:00:33]} {[%emt 00:01:07]} 29. Kf2 {[%clk 00:09:28]} {[%emt 00:00:52]}
f4 {[%clk 00:00:43]} {[%emt 00:00:21]} 30. Bb5 {[%clk 00:07:15]} {[%emt
00:02:42]} Nf5 {[%clk 00:00:49]} {[%emt 00:00:24]} 31. Bd3 {[%clk 00:06:46]}
{[%emt 00:01:00]} h5 {[%clk 00:00:33]} {[%emt 00:00:46]} 32. Bxb6 {[%clk
00:06:16]} {[%emt 00:00:59]} Rxc3 {[%clk 00:00:32]} {[%emt 00:00:31]} 33. Bxa5
{[%clk 00:06:30]} {[%emt 00:00:17]} Rc6 {[%clk 00:00:59]} {[%emt 00:00:03]} 34.
Bb4+ {[%clk 00:06:28]} {[%emt 00:00:32]} Kf7 {[%clk 00:01:27]} {[%emt
00:00:02]} 35. Be4 {[%clk 00:05:03]} {[%emt 00:01:53]} Rc8 {[%clk 00:00:35]}
{[%emt 00:01:24]} 36. a5 {[%clk 00:02:16]} {[%emt 00:03:16]} Ne3 {[%clk
00:00:52]} {[%emt 00:00:13]} 37. c3 {[%clk 00:02:09]} {[%emt 00:00:37]} Rg8
{[%clk 00:00:46]} {[%emt 00:00:37]} 38. Rg1 {[%clk 00:02:05]} {[%emt 00:00:33]}
h4 {[%clk 00:00:32]} {[%emt 00:00:44]} 39. a6 {[%clk 00:01:33]} {[%emt
00:01:02]} Rd8 {[%clk 00:00:46]} {[%emt 00:00:16]} 40. Bd6 {[%clk 00:01:29]}
{[%emt 00:00:33]} Bd5 {[%clk 00:00:32]} {[%emt 00:00:46]} 41. Bxd5+ {[%clk
00:14:13]} {[%emt 00:03:16]} Nxd5 {[%clk 00:16:19]} {[%emt 00:00:13]} 42. c4
{[%clk 00:14:16]} {[%emt 00:00:27]} Ne3 {[%clk 00:16:40]} {[%emt 00:00:09]} 43.
c5 {[%clk 00:13:27]} {[%emt 00:01:19]} Ra8 {[%clk 00:15:15]} {[%emt 00:01:54]}
44. Ra1 {[%clk 00:13:34]} {[%emt 00:00:23]} Rg8 {[%clk 00:15:18]} {[%emt
00:00:28]} 45. e6+ {[%clk 00:11:07]} {[%emt 00:02:58]} Kxe6 {[%clk 00:15:03]}
{[%emt 00:00:44]} 46. Bxf4 {[%clk 00:11:31]} {[%emt 00:00:06]} Nc2 {[%clk
00:14:43]} {[%emt 00:00:49]} 47. Ra4 {[%clk 00:11:27]} {[%emt 00:00:34]} Kd5
{[%clk 00:14:48]} {[%emt 00:00:25]} 48. Be3 {[%clk 00:10:56]} {[%emt 00:01:02]}
Re8 {[%clk 00:11:48]} {[%emt 00:03:30]} 49. a7 {[%clk 00:10:35]} {[%emt
00:00:51]} 1-0

[Event "Polofinale MCR junioru 2023"]
[Site "Czech Republic"]
[Date "2023.11.15"]
[Round "6.8"]
[White "Ocelak, Jakub"]
[Black "Prazak, Daniel"]
[Result "1/2-1/2"]
[TimeControl "90 min per 40 moves + 15 min + 30 sec / move from move 1"]
[WhiteFideId "23707933"]
[BlackFideId "23709456"]
[WhiteElo "2238"]
[BlackElo "2103"]

1. e4 {[%clk 01:30:54]} {[%emt 00:00:05]} e5 {[%clk 01:30:52]} {[%emt
00:00:08]} 2. Nf3 {[%clk 01:31:18]} {[%emt 00:00:06]} Nc6 {[%clk 01:31:13]}
{[%emt 00:00:09]} 3. Bb5 {[%clk 01:31:43]} {[%emt 00:00:05]} Nf6 {[%clk
01:31:34]} {[%emt 00:00:10]} 4. d3 {[%clk 01:32:12]} {[%emt 00:00:01]} Bc5
{[%clk 01:31:35]} {[%emt 00:00:27]} 5. c3 {[%clk 01:32:26]} {[%emt 00:00:17]}
d5 {[%clk 01:31:48]} {[%emt 00:00:17]} 6. exd5 {[%clk 01:32:53]} {[%emt
00:00:03]} Qxd5 {[%clk 01:32:05]} {[%emt 00:00:13]} 7. Bc4 {[%clk 01:33:20]}
{[%emt 00:00:03]} Qd6 {[%clk 01:32:18]} {[%emt 00:00:17]} 8. Nbd2 {[%clk
01:33:32]} {[%emt 00:00:18]} Bf5 {[%clk 01:32:25]} {[%emt 00:00:23]} 9. b4
{[%clk 01:33:34]} {[%emt 00:00:28]} Bb6 {[%clk 01:32:44]} {[%emt 00:00:11]} 10.
Ng5 {[%clk 01:33:59]} {[%emt 00:00:05]} O-O {[%clk 01:32:49]} {[%emt 00:00:25]}
11. Nde4 {[%clk 01:34:23]} {[%emt 00:00:06]} Nxe4 {[%clk 01:33:03]} {[%emt
00:00:16]} 12. dxe4 {[%clk 01:34:47]} {[%emt 00:00:06]} Qxd1+ {[%clk 01:33:14]}
{[%emt 00:00:19]} 13. Kxd1 {[%clk 01:35:11]} {[%emt 00:00:06]} Bg4+ {[%clk
01:33:16]} {[%emt 00:00:28]} 14. Kc2 {[%clk 01:35:39]} {[%emt 00:00:02]} h6
{[%clk 01:32:41]} {[%emt 00:01:05]} 15. Nf3 {[%clk 01:35:51]} {[%emt 00:00:18]}
Bxf2 {[%clk 01:32:30]} {[%emt 00:00:41]} 16. Rf1 {[%clk 01:36:05]} {[%emt
00:00:16]} Bb6 {[%clk 01:32:35]} {[%emt 00:00:24]} 17. a4 {[%clk 01:36:29]}
{[%emt 00:00:08]} a6 {[%clk 01:32:25]} {[%emt 00:00:40]} 18. Nh4 {[%clk
01:36:48]} {[%emt 00:00:10]} Ne7 {[%clk 01:31:57]} {[%emt 00:00:58]} 19. a5
{[%clk 01:37:06]} {[%emt 00:00:13]} Ba7 {[%clk 01:32:19]} {[%emt 00:00:08]} 20.
Ba3 {[%clk 01:37:34]} {[%emt 00:00:01]} Bd7 {[%clk 01:31:45]} {[%emt 00:01:05]}
21. Bb3 {[%clk 01:38:02]} {[%emt 00:00:02]} Rae8 {[%clk 01:31:47]} {[%emt
00:00:27]} 22. b5 {[%clk 01:38:19]} {[%emt 00:00:13]} Bxb5 {[%clk 01:32:07]}
{[%emt 00:00:10]} 23. Bxe7 {[%clk 01:38:40]} {[%emt 00:00:09]} Rxe7 {[%clk
01:32:31]} {[%emt 00:00:06]} 24. Ng6 {[%clk 01:39:06]} {[%emt 00:00:05]} Rd7
{[%clk 01:32:29]} {[%emt 00:00:31]} 25. Nxf8 {[%clk 01:39:27]} {[%emt
00:00:09]} Kxf8 {[%clk 01:32:49]} {[%emt 00:00:10]} 26. Rad1 {[%clk 01:39:52]}
{[%emt 00:00:05]} Rxd1 {[%clk 01:30:53]} {[%emt 00:02:26]} 27. Rxd1 {[%clk
01:40:14]} {[%emt 00:00:08]} Ke7 {[%clk 01:29:10]} {[%emt 00:02:14]} 28. Ra1
{[%clk 01:40:35]} {[%emt 00:00:09]} Bd7 {[%clk 01:14:25]} {[%emt 00:15:15]} 29.
Bd5 {[%clk 01:40:27]} {[%emt 00:00:37]} 1/2-1/2